fUST/lending_fUST_20240818
["ID","MTS","AMOUNT","RATE_DAILY","PERIOD"]
[335209774,1723979471722,-10341.66689399,0.00017898,2]
[335209775,1723979471731,-160.0,0.00017923,3]
[335209776,1723979471740,-500.0,0.0001794,7]
[335209777,1723979471750,-500.0,0.0001794,7]
[335209778,1723979471759,-500.0,0.0001794,7]
[335209779,1723979471769,-500.0,0.0001794,7]
[335209780,1723979471778,-500.0,0.0001794,7]
[335209781,1723979471788,-500.0,0.0001794,7]
[335209782,1723979471798,-500.0,0.0001794,7]
[335209783,1723979471807,-500.0,0.0001794,7]
[335209784,1723979471816,-500.0,0.0001794,7]
[335209785,1723979471826,-500.0,0.0001794,7]
[335209786,1723979471837,-364.3,0.0001794,7]
[335209787,1723979471847,-168.33,0.0001794,7]
[335209788,1723979471856,-500.0,0.0001794,7]
[335209789,1723979471865,-500.0,0.0001794,7]
[335209790,1723979471875,-1000.0,0.00018,2]
[335209791,1723979471884,-3000.0,0.00018,2]
[335209792,1723979471894,-452.0,0.00018,2]
[335209793,1723979471904,-3000.0,0.0001801,2]
[335209794,1723979471913,-3000.0,0.0001802,2]
[335209795,1723979471929,-3000.0,0.0001803,2]
[335209796,1723979471939,-3000.0,0.0001804,2]
[335209797,1723979471948,-3000.0,0.0001805,2]
[335209798,1723979471958,-3000.0,0.0001806,2]
[335209799,1723979471967,-3000.0,0.0001807,2]
[335209800,1723979471977,-150.0,0.00018073,2]
[335209801,1723979471988,-3000.0,0.0001808,2]
[335209802,1723979471998,-500.0,0.00018082,2]
[335209803,1723979472007,-500.0,0.00018082,2]
[335209804,1723979472017,-399.79032775,0.00018082,2]
[335209805,1723979472026,-500.0,0.00018082,2]
[335209806,1723979472035,-500.0,0.00018082,2]
[335209807,1723979472045,-500.0,0.00018082,2]
[335209808,1723979472054,-500.0,0.00018082,2]
[335209809,1723979472064,-500.0,0.00018082,2]
[335209810,1723979472074,-500.0,0.00018082,2]
[335209811,1723979472083,-500.0,0.00018082,2]
[335209812,1723979472093,-500.0,0.00018082,2]
[335209813,1723979472103,-500.0,0.00018082,2]
[335209814,1723979472112,-892.11,0.00018082,2]
[335209815,1723979472122,-500.0,0.00018082,2]
[335209816,1723979472131,-455.15414651,0.00018082,2]
[335209817,1723979472141,-790.36,0.00018082,2]
[335209818,1723979472150,-500.0,0.00018082,2]
[335209819,1723979472159,-500.0,0.00018082,2]
[335209820,1723979472169,-500.0,0.00018082,2]
[335209821,1723979472178,-571.35,0.00018082,2]
[335209822,1723979472189,-500.0,0.00018082,2]
[335209823,1723979472198,-500.0,0.00018082,2]
[335209824,1723979472207,-500.0,0.00018082,2]
[335209825,1723979472217,-500.0,0.00018082,2]
[335209826,1723979472226,-500.0,0.00018082,2]
[335209827,1723979472235,-477.99563962,0.00018082,2]
[335209828,1723979472244,-733.98,0.00018082,2]
[335209829,1723979472253,-500.0,0.00018082,2]
[335209830,1723979472264,-529.81,0.00018082,2]
[335209831,1723979472273,-151.0,0.00018082,2]
[335209832,1723979472283,-391.84684651,0.00018082,2]
[335209833,1723979472292,-719.11,0.00018082,2]
[335209834,1723979472303,-500.0,0.00018082,2]
[335209835,1723979472312,-500.0,0.00018082,2]
[335209836,1723979472322,-517.61642166,0.00018082,2]
[335209837,1723979472332,-662.22,0.00018082,2]
[335209838,1723979472341,-500.0,0.00018082,2]
[335209839,1723979472352,-500.0,0.00018082,2]
[335209840,1723979472361,-538.36,0.00018082,2]
[335209841,1723979472371,-994.27,0.00018082,2]
[335209842,1723979472380,-1007.76,0.00018082,2]
[335209843,1723979472390,-500.0,0.00018082,2]
[335209844,1723979472399,-500.0,0.00018082,2]
[335209845,1723979472409,-666.68,0.00018082,2]
[335209846,1723979472422,-513.97,0.00018082,2]
[335209847,1723979472432,-500.0,0.00018082,2]
[335209848,1723979472441,-667.83,0.00018082,2]
[335209849,1723979472450,-500.0,0.00018082,2]
[335209850,1723979472459,-500.0,0.00018082,2]
[335209851,1723979472468,-397.39914481,0.00018082,2]
[335209852,1723979472478,-515.51,0.00018082,2]
[335209853,1723979472487,-500.0,0.00018082,2]
[335209854,1723979472497,-500.0,0.00018082,2]
[335209855,1723979472507,-500.0,0.00018082,2]
[335209856,1723979472520,-500.0,0.00018082,2]
[335209857,1723979472530,-500.0,0.00018082,2]
[335209858,1723979472540,-699.21,0.00018082,2]
[335209859,1723979472550,-500.0,0.00018082,2]
[335209860,1723979472559,-835.69,0.00018082,2]
[335209861,1723979472568,-681.64,0.00018082,2]
[335209862,1723979472578,-667.86,0.00018082,2]
[335209863,1723979472592,-500.0,0.00018082,2]
[335209864,1723979472601,-500.0,0.00018082,2]
[335209865,1723979472611,-2005.0,0.00018082,10]
[335209866,1723979472620,-500.0,0.00018082,2]
[335209867,1723979472630,-500.0,0.00018082,2]
[335209868,1723979472640,-200.0,0.00018082,2]
[335209869,1723979472649,-500.0,0.00018082,2]
[335209870,1723979472658,-500.0,0.00018082,2]
[335209871,1723979472670,-500.0,0.00018082,2]
[335209872,1723979472679,-500.0,0.00018082,2]
[335209873,1723979472688,-697.49,0.00018082,2]
[335209874,1723979472697,-720.31,0.00018082,2]
[335209875,1723979472707,-570.82,0.00018082,2]
[335209876,1723979472717,-756.2,0.00018082,2]
[335209877,1723979472726,-1189.78,0.00018082,2]
[335209878,1723979472735,-500.0,0.00018082,2]
[335209879,1723979472746,-1408.37,0.00018082,2]
[335209880,1723979472756,-620.88,0.00018082,2]
[335209881,1723979472882,-500.0,0.00018082,2]
[335209882,1723979472892,-500.0,0.00018082,2]
[335209883,1723979472902,-526.73,0.00018082,2]
[335209884,1723979472911,-704.33,0.00018082,2]
[335209885,1723979472923,-285.59539038,0.00018082,2]
[335209886,1723979472933,-500.0,0.00018082,2]
[335209887,1723979472943,-607.24,0.00018082,2]
[335209888,1723979472953,-741.17,0.00018082,2]
[335209889,1723979472962,-973.79,0.00018082,2]
[335209890,1723979472972,-688.92,0.00018082,2]
[335209891,1723979472981,-500.0,0.00018082,2]
[335209892,1723979472991,-500.0,0.00018082,2]
[335209893,1723979473001,-718.41,0.00018082,2]
[335209894,1723979473011,-500.0,0.00018082,2]
[335209895,1723979473020,-648.55,0.00018082,2]
[335209896,1723979473030,-500.0,0.00018082,2]
[335209897,1723979473040,-500.0,0.00018082,2]
[335209898,1723979473049,-652.17,0.00018082,2]
[335209899,1723979473059,-500.0,0.00018082,2]
[335209900,1723979473069,-656.44,0.00018082,2]
[335209901,1723979473078,-500.0,0.00018082,2]
[335209902,1723979473087,-500.0,0.00018082,2]
[335209903,1723979473097,-500.0,0.00018082,2]
[335209904,1723979473106,-733.8,0.00018082,2]
[335209905,1723979473115,-500.0,0.00018082,2]
[335209906,1723979473125,-500.0,0.00018082,2]
[335209907,1723979473135,-607.05,0.00018082,2]
[335209908,1723979473145,-500.0,0.00018082,2]
[335209909,1723979473155,-500.0,0.00018082,2]
[335209910,1723979473164,-500.0,0.00018082,2]
[335209911,1723979473176,-500.0,0.00018082,2]
[335209912,1723979473185,-805.33,0.00018082,2]
[335209913,1723979473195,-500.0,0.00018082,2]
[335209914,1723979473204,-566.71,0.00018082,2]
[335209915,1723979473214,-500.0,0.00018082,2]
[335209916,1723979473223,-305.32793756,0.00018082,2]
[335209917,1723979473232,-500.0,0.00018082,2]
[335209918,1723979473241,-500.0,0.00018082,2]
[335209919,1723979473251,-500.0,0.00018082,2]
[335209920,1723979473261,-500.0,0.00018082,2]
[335209921,1723979473271,-500.0,0.00018082,2]
[335209922,1723979473280,-500.0,0.00018082,2]
[335209923,1723979473289,-500.0,0.00018082,2]
[335209924,1723979473298,-500.0,0.00018082,2]
[335209925,1723979473307,-500.0,0.00018082,2]
[335209926,1723979473317,-1108.64,0.00018082,2]
[335209927,1723979473326,-500.0,0.00018082,2]
[335209928,1723979473335,-582.5,0.00018082,2]
[335209929,1723979473345,-934.91,0.00018082,2]
[335209930,1723979473354,-500.0,0.00018082,2]
[335209931,1723979473363,-1000.0,0.00018082,2]
[335209932,1723979473373,-500.0,0.00018082,2]
[335209933,1723979473382,-500.0,0.00018082,2]
[335209934,1723979473391,-885.71,0.00018082,2]
[335209935,1723979473401,-500.0,0.00018082,2]
[335209936,1723979473410,-500.0,0.00018082,2]
[335209937,1723979473420,-500.0,0.00018082,2]
[335209938,1723979473430,-500.0,0.00018082,2]
[335209939,1723979473439,-709.34,0.00018082,2]
[335209940,1723979473448,-500.0,0.00018082,2]
[335209941,1723979473458,-500.0,0.00018082,2]
[335209942,1723979473468,-500.0,0.00018082,2]
[335209943,1723979473478,-500.0,0.00018082,2]
[335209944,1723979473487,-500.0,0.00018082,2]
[335209945,1723979473497,-694.89,0.00018082,2]
[335209946,1723979473507,-500.0,0.00018082,2]
[335209947,1723979473519,-500.0,0.00018082,2]
[335209948,1723979473528,-936.29,0.00018082,2]
[335209949,1723979473537,-621.07,0.00018082,2]
[335209950,1723979473547,-500.0,0.00018082,2]
[335209951,1723979473556,-500.0,0.00018082,2]
[335209952,1723979473566,-1214.6,0.00018082,2]
[335209953,1723979473575,-1409.37,0.00018082,2]
[335209954,1723979473585,-500.0,0.00018082,2]
[335209955,1723979473594,-666.89,0.00018082,2]
[335209956,1723979473604,-500.0,0.00018082,2]
[335209957,1723979473614,-500.0,0.00018082,2]
[335209958,1723979473623,-500.0,0.00018082,2]
[335209959,1723979473632,-500.0,0.00018082,2]
[335209960,1723979473641,-500.0,0.00018082,2]
[335209961,1723979473650,-500.0,0.00018082,2]
[335209962,1723979473660,-500.0,0.00018082,2]
[335209963,1723979473670,-1362.27,0.00018082,2]
[335209964,1723979473679,-1133.98,0.00018082,2]
[335209965,1723979473688,-4647.9,0.00018082,2]
[335209966,1723979473698,-603.56,0.00018082,2]
[335209967,1723979473707,-555.08,0.00018082,2]
[335209968,1723979473717,-500.0,0.00018082,2]
[335209969,1723979473727,-500.0,0.00018082,2]
[335209970,1723979473737,-1319.09,0.00018082,2]
[335209971,1723979473746,-500.0,0.00018082,2]
[335209972,1723979473756,-500.0,0.00018082,2]
[335209973,1723979473766,-500.0,0.00018082,2]
[335209974,1723979473775,-500.0,0.00018082,2]
[335209975,1723979473785,-1176.95,0.00018082,2]
[335209976,1723979473795,-500.0,0.00018082,2]
[335209977,1723979473805,-773.17,0.00018082,2]
[335209978,1723979473814,-2171.88,0.00018082,2]
[335209979,1723979473823,-500.0,0.00018082,2]
[335209980,1723979473832,-595.36,0.00018082,2]
[335209981,1723979473842,-500.0,0.00018082,2]
[335209982,1723979473852,-931.18,0.00018082,2]
[335209983,1723979473862,-665.07,0.00018082,2]
[335209984,1723979473871,-1489.85,0.00018082,2]
[335209985,1723979473881,-3211.23,0.00018082,2]
[335209986,1723979473891,-500.0,0.00018082,2]
[335209987,1723979473900,-500.0,0.00018082,2]
[335209988,1723979473910,-930.16,0.00018082,2]
[335209989,1723979473919,-1997.88,0.00018082,2]
[335209990,1723979473929,-917.17,0.00018082,2]
[335209991,1723979473938,-500.0,0.00018082,2]
[335209992,1723979473947,-500.0,0.00018082,2]
[335209993,1723979473956,-500.0,0.00018082,2]
[335209994,1723979473966,-500.0,0.00018082,2]
[335209995,1723979473975,-500.0,0.00018082,2]
[335209996,1723979473985,-602.66,0.00018082,2]
[335209997,1723979473994,-500.0,0.00018082,2]
[335209998,1723979474004,-1241.55,0.00018082,2]
[335209999,1723979474013,-643.82,0.00018082,2]
[335210000,1723979474022,-607.78,0.00018082,2]
[335210001,1723979474031,-655.66,0.00018082,2]
[335210002,1723979474040,-7440.18,0.00018082,2]
[335210003,1723979474049,-1029.95,0.00018082,2]
[335210004,1723979474060,-500.0,0.00018082,2]
[335210005,1723979474069,-1019.02,0.00018082,2]
[335210006,1723979474079,-500.0,0.00018082,2]
[335210007,1723979474089,-1026.7,0.00018082,2]
[335210008,1723979474100,-500.0,0.00018082,2]
[335210009,1723979474110,-1063.7,0.00018082,2]
[335210010,1723979474120,-500.0,0.00018082,2]
[335210011,1723979474130,-500.0,0.00018082,2]
[335210012,1723979474140,-500.0,0.00018082,2]
[335210013,1723979474150,-579.89,0.00018082,2]
[335210014,1723979474160,-706.05,0.00018082,2]
[335210015,1723979474171,-668.29,0.00018082,2]
[335210016,1723979474180,-1230.19,0.00018082,2]
[335210017,1723979474190,-500.0,0.00018082,2]
[335210018,1723979474199,-2221.95,0.00018082,2]
[335210019,1723979474209,-500.0,0.00018082,2]
[335210020,1723979474219,-500.0,0.00018082,2]
[335210021,1723979474228,-420.30153185,0.00018082,2]
[335210022,1723979474239,-2766.47,0.00018082,2]
[335210023,1723979474249,-888.46,0.00018082,2]
[335210024,1723979474259,-500.0,0.00018082,2]
[335210025,1723979474268,-169.57892965,0.00018082,2]
[335210026,1723979474771,-817.42780859,0.00012779,2]
[335210027,1723979474780,-601.81919739,0.00012971,2]
[335210028,1723979474790,-288.24477057,0.00015357,2]
[335210029,1723979474799,-6279.30822345,0.00016338,2]
[335210030,1723979500400,166.4,5.479e-05,2]
[335210031,1723979560095,2142.58813203,6.641e-05,2]
[335210032,1723979560978,330.1068973,6.641e-05,2]
[335210033,1723979567972,155.01256211,6.641e-05,2]
[335210034,1723979575086,1765.54302702,6.641e-05,2]
[335210035,1723979579851,809.95963071,6.641e-05,2]
[335210037,1723979797547,166.4,5.479e-05,2]
[335210040,1723979983517,154.85282802,6.641e-05,2]
[335210041,1723980094858,166.4,5.479e-05,2]
[335210042,1723980165926,154.79103211,6.641e-05,2]
[335210047,1723980395521,166.4,5.479e-05,2]
[335210048,1723980428161,-2141.07551843,7.911e-05,2]
[335210049,1723980428184,-1978.4639273,8.05e-05,3]
[335210050,1723980444102,-301.8248988,8.05e-05,3]
[335210051,1723980444127,-468.61845366,8.255e-05,2]
[335210058,1723980564100,-273.53393435,8.09e-05,2]
[335210059,1723980564123,-273.37336231,8.172e-05,2]
[335210060,1723980564146,-239.77377321,8.255e-05,2]
[335210061,1723980568123,-3749.57687533,8.255e-05,2]
[335210062,1723980568145,-300.0,8.553e-05,2]
[335210063,1723980568168,-300.0,8.553e-05,2]
[335210064,1723980568191,-24900.0,8.554e-05,2]
[335210065,1723980568216,-250.0,8.668e-05,2]
[335210066,1723980568239,-250.0,8.692e-05,2]
[335210067,1723980568263,-250.0,8.716e-05,2]
[335210068,1723980568286,-250.0,8.739e-05,2]
[335210069,1723980568308,-250.0,8.763e-05,2]
[335210070,1723980568330,-250.0,8.787e-05,2]
[335210071,1723980568353,-250.0,8.811e-05,2]
[335210072,1723980568376,-250.0,8.835e-05,2]
[335210073,1723980568400,-250.0,8.858e-05,2]
[335210074,1723980568423,-250.0,8.882e-05,2]
[335210075,1723980568446,-250.0,8.906e-05,2]
[335210076,1723980568468,-250.0,8.93e-05,2]
[335210077,1723980568491,-250.0,8.953e-05,2]
[335210078,1723980568513,-250.0,8.977e-05,2]
[335210079,1723980568536,-250.0,9.001e-05,2]
[335210080,1723980568559,-250.0,9.025e-05,2]
[335210081,1723980568582,-250.0,9.049e-05,2]
[335210082,1723980568605,-250.0,9.072e-05,2]
[335210083,1723980568628,-250.0,9.096e-05,2]
[335210084,1723980568651,-250.0,9.12e-05,2]
[335210085,1723980568673,-420.0,9.409e-05,2]
[335210086,1723980568695,-420.0,9.409e-05,2]
[335210087,1723980568716,-165.757867,9.751e-05,2]
[335210088,1723980568737,-165.757867,9.755e-05,2]
[335210089,1723980568759,-165.757867,9.758e-05,2]
[335210090,1723980568780,-165.757867,9.762e-05,2]
[335210091,1723980568802,-165.757867,9.766e-05,2]
[335210092,1723980568822,-165.757867,9.77e-05,2]
[335210093,1723980568844,-165.757867,9.773e-05,2]
[335210094,1723980568865,-165.757867,9.777e-05,2]
[335210095,1723980568886,-165.757867,9.781e-05,2]
[335210096,1723980568906,-165.757867,9.785e-05,2]
[335210097,1723980568927,-165.757867,9.788e-05,2]
[335210098,1723980568948,-165.757867,9.792e-05,2]
[335210099,1723980568970,-165.757867,9.796e-05,2]
[335210100,1723980568995,-165.757867,9.8e-05,2]
[335210101,1723980569015,-998.10360315,9.999e-05,2]
[335210102,1723980569037,-411.48771605,0.0001,2]
[335210103,1723980569058,-19546.02120518,0.0001,2]
[335210104,1723980569080,-3609.28567796,0.00010006,2]
[335210105,1723980569101,-465.2977237,0.00010006,2]
[335210106,1723980569121,-154.79103211,0.00010006,2]
[335210107,1723980569141,-4719.09219548,0.00010006,2]
[335210108,1723980569162,-405.30195188,0.00010006,2]
[335210109,1723980569183,-218.66051313,0.00010006,2]
[335210110,1723980569205,-587.0,0.00010349,2]
[335210111,1723980569226,-587.0,0.00010349,2]
[335210112,1723980569247,-520.55254541,0.00010958,2]
[335210113,1723980569270,-823.0,0.00011384,2]
[335210114,1723980569295,-395.0,0.00011384,2]
[335210115,1723980569318,-7012.68235792,0.00011987,2]
[335210116,1723980569340,-8843.52115837,0.0001212,2]
[335210117,1723980569361,-9658.15828806,0.0001212,2]
[335210118,1723980569382,-11019.7092001,0.00012356,2]
[335210134,1723980632702,-736.02,8.09e-05,2]
[335210136,1723980632715,-434.4293937,8.09e-05,2]
[335210137,1723980632740,-469.79078016,8.09e-05,2]
[335210138,1723980632750,-273.37336231,8.172e-05,2]
[335210139,1723980632759,-933.70029218,0.00010006,2]
[335210140,1723980632769,-413.45265018,0.00010006,2]
[335210141,1723980632778,-6489.7860044,0.00010006,2]
[335210142,1723980632787,-284.77517876,0.00010006,2]
[335210143,1723980632797,-300.0,0.00011347,2]
[335210144,1723980632806,-24900.0,0.00011348,2]
[335210145,1723980632816,-8843.52115837,0.00011987,2]
[335210146,1723980632825,-1500.0,0.00012356,2]
[335210147,1723980632836,-420.0,0.00012482,2]
[335210148,1723980632853,-2712.30651884,0.00012516,2]
[335210149,1723980632863,-2127.39988805,0.00012551,2]
[335210150,1723980632872,-6892.02065685,0.00012672,2]
[335210151,1723980632882,-1022.37328979,0.00012779,2]
[335210152,1723980632892,-665.39526372,0.00012898,2]
[335210153,1723980632901,-154.69833824,0.00012898,2]
[335210154,1723980632911,-210.21705151,0.00012898,2]
[335210155,1723980632921,-7794.93795715,0.000129,2]
[335210156,1723980632930,-2357.66849891,0.00012904,2]
[335210157,1723980632942,-4534.35215791,0.00012904,2]
[335210158,1723980632952,-154.79103211,0.00012934,2]
[335210159,1723980632961,-811.29992625,0.00012934,2]
[335210160,1723980632971,-354.39074482,0.00012934,2]
[335210161,1723980632981,-543.94914029,0.00012934,2]
[335210162,1723980632990,-12.40417296,0.00012934,2]
[335210168,1723980640123,-817.42780859,0.00012779,2]
[335210179,1723980640276,-196.79108262,0.00012898,2]
[335210180,1723980640286,-798.89575329,0.00012934,2]
[335210181,1723980640296,-404.39043971,0.00012934,2]
[335210182,1723980640305,-190.05416468,0.00012971,2]
[335210183,1723980640315,-160.33534964,0.00012971,2]
[335210184,1723980640324,-155.03345781,0.00012971,2]
[335210185,1723980640333,-688.38340508,0.00012985,2]
[335210186,1723980640343,-569.49565221,0.00012985,2]
[335210187,1723980640352,-154.69833824,0.00012985,2]
[335210188,1723980640362,-779.97165007,0.00012985,2]
[335210189,1723980640371,-288.24477057,0.00012985,2]
[335210190,1723980640381,-154.69833824,0.00012985,2]
[335210191,1723980640390,-493.25192424,0.00012985,2]
[335210192,1723980640399,-154.69833824,0.00012985,2]
[335210193,1723980640408,-601.81919739,0.00012989,2]
[335210194,1723980640418,-154.82192389,0.00012989,2]
[335210195,1723980640427,-320.23588557,0.00012991,2]
[335210196,1723980640436,-157.07977921,0.00012991,2]
[335210197,1723980640446,-7025.889033,0.00013,2]
[335210198,1723980640455,-500.0,0.00013,2]
[335210199,1723980640465,-862.33113123,0.00013,2]
[335210200,1723980640475,-154.70605849,0.00013,2]
[335210201,1723980640485,-5101.8287568,0.00013,2]
[335210202,1723980640494,-301.50555711,0.00013025,2]
[335210203,1723980640504,-6892.02065682,0.00013136,2]
[335210204,1723980640513,-6892.02065682,0.00013367,2]
[335210205,1723980640523,-495.09081333,0.00013477,2]
[335210206,1723980640532,-495.09081333,0.00013477,2]
[335210207,1723980640541,-157.74700768,0.00013496,2]
[335210208,1723980640550,-6892.02065682,0.00013599,2]
[335210209,1723980640559,-42407.2799269,0.00013697,2]
[335210210,1723980640568,-500.0,0.00013698,2]
[335210211,1723980640578,-318.4753275,0.00013698,2]
[335210212,1723980640587,-500.0,0.00013698,2]
[335210213,1723980640597,-500.0,0.00013698,2]
[335210214,1723980640607,-500.0,0.00013698,2]
[335210215,1723980640617,-534.60777943,0.00013698,2]
[335210216,1723980640627,-500.0,0.00013698,2]
[335210217,1723980640636,-500.0,0.00013698,2]
[335210218,1723980640645,-500.0,0.00013698,2]
[335210219,1723980640654,-500.0,0.00013698,2]
[335210220,1723980640663,-500.0,0.00013698,2]
[335210221,1723980640673,-500.0,0.00013698,2]
[335210222,1723980640682,-500.0,0.00013698,2]
[335210223,1723980640691,-500.0,0.00013698,2]
[335210224,1723980640700,-500.59257658,0.00013698,2]
[335210225,1723980640710,-181.40740349,0.00013698,2]
[335210226,1723980640719,-500.0,0.00013698,2]
[335210227,1723980640729,-502.51711214,0.00013698,2]
[335210228,1723980640738,-500.0,0.00013698,2]
[335210229,1723980640747,-500.0,0.00013698,2]
[335210230,1723980640757,-500.0,0.00013698,2]
[335210231,1723980640766,-500.0,0.00013698,2]
[335210232,1723980640775,-500.0,0.00013698,2]
[335210233,1723980640785,-550.0,0.00013698,2]
[335210234,1723980640794,-899.741127,0.00013699,2]
[335210235,1723980640803,-3000.0,0.00013699,2]
[335210236,1723980640813,-500.0,0.00013699,2]
[335210237,1723980640823,-500.0,0.00013699,2]
[335210238,1723980640832,-500.0,0.00013699,2]
[335210239,1723980640842,-500.0,0.00013699,2]
[335210240,1723980640852,-500.0,0.00013699,2]
[335210241,1723980640861,-500.0,0.00013699,2]
[335210242,1723980640871,-500.0,0.00013699,2]
[335210243,1723980640880,-500.0,0.00013699,2]
[335210244,1723980640890,-500.0,0.00013699,2]
[335210245,1723980640899,-500.0,0.00013699,2]
[335210246,1723980640909,-500.0,0.00013699,2]
[335210247,1723980640918,-500.0,0.00013699,2]
[335210248,1723980640927,-500.0,0.00013699,2]
[335210249,1723980640936,-500.0,0.00013699,2]
[335210250,1723980640946,-500.0,0.00013699,2]
[335210251,1723980640955,-500.0,0.00013699,2]
[335210252,1723980640964,-500.0,0.00013699,2]
[335210253,1723980640974,-500.0,0.00013699,2]
[335210254,1723980640983,-500.0,0.00013699,2]
[335210255,1723980640993,-500.0,0.00013699,2]
[335210256,1723980641002,-500.0,0.00013699,2]
[335210257,1723980641016,-500.0,0.00013699,2]
[335210258,1723980641025,-500.0,0.00013699,2]
[335210259,1723980641035,-500.0,0.00013699,2]
[335210260,1723980641044,-500.0,0.00013699,2]
[335210261,1723980641054,-500.0,0.00013699,2]
[335210262,1723980641065,-500.0,0.00013699,2]
[335210263,1723980641074,-500.0,0.00013699,2]
[335210264,1723980641084,-500.0,0.00013699,2]
[335210265,1723980641094,-500.0,0.00013699,2]
[335210266,1723980641104,-500.0,0.00013699,2]
[335210267,1723980641113,-500.0,0.00013699,2]
[335210268,1723980641122,-500.0,0.00013699,2]
[335210269,1723980641132,-500.0,0.00013699,2]
[335210270,1723980641141,-500.0,0.00013699,2]
[335210271,1723980641150,-500.0,0.00013699,2]
[335210272,1723980641160,-500.0,0.00013699,2]
[335210273,1723980641169,-500.0,0.00013699,2]
[335210274,1723980641178,-500.0,0.00013699,2]
[335210275,1723980641187,-520.41551793,0.00013699,2]
[335210276,1723980641196,-520.41551793,0.00013699,2]
[335210277,1723980641206,-520.41551793,0.00013699,2]
[335210278,1723980641216,-520.41551793,0.00013699,2]
[335210279,1723980641226,-520.41551793,0.00013699,2]
[335210280,1723980641235,-520.41551793,0.00013699,2]
[335210281,1723980641245,-520.41551793,0.00013699,2]
[335210282,1723980641254,-520.41551793,0.00013699,2]
[335210283,1723980641264,-520.41551793,0.00013699,2]
[335210284,1723980641273,-520.41551793,0.00013699,2]
[335210285,1723980641283,-520.41551793,0.00013699,2]
[335210286,1723980641292,-520.41551793,0.00013699,2]
[335210287,1723980641302,-520.41551793,0.00013699,2]
[335210288,1723980641312,-520.41551793,0.00013699,2]
[335210289,1723980641322,-520.41551793,0.00013699,2]
[335210290,1723980641331,-520.41551793,0.00013699,2]
[335210291,1723980641340,-520.41551793,0.00013699,2]
[335210292,1723980641350,-520.41551793,0.00013699,2]
[335210293,1723980641359,-520.41551793,0.00013699,2]
[335210294,1723980641368,-520.41551793,0.00013699,2]
[335210295,1723980641378,-520.41551793,0.00013699,2]
[335210296,1723980641387,-520.41551793,0.00013699,2]
[335210297,1723980641397,-520.41551793,0.00013699,2]
[335210298,1723980641406,-520.41551793,0.00013699,2]
[335210299,1723980641416,-520.41551793,0.00013699,2]
[335210300,1723980641425,-520.41551793,0.00013699,2]
[335210301,1723980641435,-520.41551793,0.00013699,2]
[335210302,1723980641445,-520.41551793,0.00013699,2]
[335210303,1723980641454,-520.41551793,0.00013699,2]
[335210304,1723980641464,-520.41551793,0.00013699,2]
[335210305,1723980641474,-520.41551793,0.00013699,2]
[335210306,1723980641483,-520.41551793,0.00013699,2]
[335210307,1723980641493,-520.41551793,0.00013699,2]
[335210308,1723980641502,-520.41551793,0.00013699,2]
[335210309,1723980641512,-520.41551793,0.00013699,2]
[335210310,1723980641521,-520.41551793,0.00013699,2]
[335210311,1723980641530,-520.41551793,0.00013699,2]
[335210312,1723980641539,-520.41551793,0.00013699,2]
[335210313,1723980641549,-520.41551793,0.00013699,2]
[335210314,1723980641558,-520.41551793,0.00013699,2]
[335210315,1723980641568,-525.04143367,0.00013699,2]
[335210316,1723980641577,-525.04143367,0.00013699,2]
[335210317,1723980641587,-525.04143367,0.00013699,2]